[Event "44th Chess Olympiad Women 2022"]
[Site "Chennai"]
[Date "2022.08.09"]
[Round "11.48"]
[White "Likando Namakau"]
[Black "Naira Sinoia"]
[Result "1-0"]
[ECO "C22"]
[WhiteElo "1544"]
[BlackElo "1116"]
[Annotator "NA RC COMBH"]
[PlyCount "61"]
[EventDate "2022.07.29"]
[EventType "team-tourn"]
[EventCountry "IND"]
[SourceTitle "playchess.com"]
[Source "ChessBase"]
[SourceQuality "1"]
[WhiteTeam "Zambia"]
[BlackTeam "Mozambique"]
[WhiteTeamCountry "ZAM"]
[BlackTeamCountry "MOZ"]
[TimeControl "40/5400+30:1800+30"]

1. e4 {[%emt 0:00:31]} e5 {[%emt 0:00:06]} 2. d4 {[%emt 0:00:20]} exd4 {[%emt 0:00:17]} 3. Qxd4 {[%emt 0:00:24]} Nc6 {[%emt 0:00:10]} 4. Qa4 {[%emt 0:01:33]} Nf6 {[%emt 0:00:13]} 5. Nf3 {[%emt 0:02:23]} Bc5 {[%emt 0:00:19]} 6. Bd3 {[%emt 0:04:05]} d6 {[%emt 0:00:59]} 7. h3 {[%emt 0:01:35]} Bd7 {[%emt 0:00:09]} 8. Qb3 {[%emt 0:05:10]} O-O {[%emt 0:08:58]} 9. c3 {[%emt 0:01:07]} Bb6 {[%emt 0:05:16]} 10. Bg5 {[%emt 0:00:41]} h6 {[%emt 0:00:20]} 11. Bh4 {[%emt 0:00:12]} Ne5 {[%emt 0:00:26]} 12. Be2 {[%emt 0:02:42]} g5 {[%emt 0:01:05]} 13. Bg3 {[%emt 0:02:50]} Nxe4 {[%emt 0:00:13]} 14. Nbd2 {[%emt 0:01:17]} Nxf3+ {[%emt 0:01:30]} 15. Bxf3 {[%emt 0:03:28]} Nxg3 {[%emt 0:00:32]} 16. fxg3 {[%emt 0:00:10]} Qe7+ {[%emt 0:00:25]} 17. Kd1 {[%emt 0:00:24]} Rfe8 {[%emt 0:04:35]} 18. g4 {[%emt 0:02:04]} Rab8 {[%emt 0:03:50]} 19. Kc2 {[%emt 0:00:28]} Bc6 {[%emt 0:02:09]} 20. Rae1 {[%emt 0:02:12]} Qf6 {[%emt 0:00:32]} 21. Kb1 {[%emt 0:00:22]} Be3 {[%emt 0:00:37]} 22. Bxc6 {[%emt 0:04:13]} bxc6 {[%emt 0:00:21]} 23. Rxe3 {[%emt 0:01:21]} Rxe3 {[%emt 0:09:34]} 24. Qxb8+ {[%emt 0:00:54]} Kg7 {[%emt 0:00:08]} 25. Nf3 {[%emt 0:01:33]} Re2 {[%emt 0:00:35]} 26. Qxa7 {[%emt 0:07:01]} Qg6+ {[%emt 0:00:33]} 27. Ka1 {[%emt 0:00:46]} Qc2 {[%emt 0:00:16]} 28. Qb7 {[%emt 0:00:46]} Rxg2 {[%emt 0:00:17]} 29. a3 {[%emt 0:03:07]} Rg3 {[%emt 0:02:20]} 30. Nd4 {[%emt 0:02:03]} Qd3 {[%emt 0:03:58]} 31. Nf5+ {[%emt 0:01:10]} 1-0

[Event "44th Chess Olympiad Women 2022"]
[Site "Chennai"]
[Date "2022.08.09"]
[Round "11.48"]
[White "Castro, Neusa Aridas De"]
[Black "Mwango, Lorita"]
[Result "0-1"]
[ECO "B30"]
[WhiteElo "1531"]
[BlackElo "1920"]
[Annotator "TA"]
[PlyCount "78"]
[EventDate "2022.07.29"]
[EventType "team-tourn"]
[EventCountry "IND"]
[SourceTitle "playchess.com"]
[Source "ChessBase"]
[SourceQuality "1"]
[WhiteTeam "Mozambique"]
[BlackTeam "Zambia"]
[WhiteTeamCountry "MOZ"]
[BlackTeamCountry "ZAM"]
[TimeControl "40/5400+30:1800+30"]

{[%evp 9,78,-17,-16,-31,-20,-19,-25,-16,-13,-48,0,0,21,18,14,16,25,0,0,0,0,-20,13,0,13,-4,3,-3,-3,-3,-6,-15,-7,-33,0,-35,-20,-40,-36,-65,-75,-122,-131,-123,-44,-45,0,0,10,-14,-14,-18,0,-291,-272,-272,-275,-261,-202,-297,-290,-295,-293,-320,-294,-1230,-1198,-1184,-1160,-5481,-5365]} 1. e4 {[%emt 0:00:09]} c5 {[%emt 0:00:25]} 2. Bc4 {[%emt 0:00:44]} e6 {[%emt 0:00:25]} 3. Nf3 {[%emt 0:01:14]} Nc6 {[%emt 0:00:11]} 4. a3 {[%emt 0:00:36]} d5 {[%emt 0:00:39]} 5. exd5 {[%emt 0:01:21]} exd5 {[%emt 0:00:33]} 6. Be2 {[%emt 0:00:22] B30: Sicilian: 2...Nc6 3 Bb5, lines without ...g6.} Nf6 {[%emt 0:00:17]} 7. d4 {[%emt 0:00:15] [#]} cxd4 $146 {[%emt 0:01:02]} ({Predecessor:} 7... c4 8. O-O Bd6 9. Bg5 h6 10. Bxf6 Qxf6 11. Nc3 Be6 12. Re1 O-O 13. Bf1 Rad8 {0-1 (44) Langer,C (2048)-Hanhoerster,S (2020) Lieme 2002}) 8. Nxd4 {[%emt 0:00:15] Black has an edge.} Bc5 {[%emt 0:00:19]} 9. Nf3 {[%emt 0:03:20]} Qb6 {[%emt 0:01:21]} (9... Ne4 $15 10. O-O O-O) 10. O-O $11 {[%emt 0:03:26]} O-O {[%emt 0:00:19]} 11. Nc3 {[%emt 0:01:33]} Qd8 {[%emt 0:35:24]} 12. Bg5 {[%emt 0:07:23]} Be6 {[%emt 0:04:30]} 13. b4 {[%emt 0:12:54]} Be7 {[%emt 0:00:15]} 14. Bd3 {[%emt 0:08:42]} Rc8 {[%emt 0:03:07]} 15. Ne2 {[%emt 0:00:58]} Ne4 {[%emt 0:00:42]} 16. Bxe7 {[%emt 0:01:14]} Qxe7 {[%emt 0:00:11]} 17. Nfd4 {[%emt 0:00:16]} Bd7 {[%emt 0:05:50]} 18. f3 {[%emt 0:03:02]} Nxd4 {[%emt 0:04:51]} 19. Nxd4 {[%emt 0:01:13]} Nc3 {[%emt 0:00:18]} 20. Qd2 {[%emt 0:00:40]} Qf6 {[%emt 0:00:22]} 21. Nb3 {[%emt 0:01:57]} b6 {[%emt 0:00:44]} 22. Qf2 {[%emt 0:03:52]} g6 {[%emt 0:02:57]} 23. Rae1 {[%emt 0:07:13]} Bb5 {[%emt 0:02:55]} 24. Qd2 {[%emt 0:06:07]} Rfd8 {[%emt 0:01:11] Black is more active.} 25. Bxb5 {[%emt 0:04:37]} ({White should try} 25. Qe3) 25... Nxb5 $17 {[%emt 0:00:09]} 26. a4 {[%emt 0:00:22]} Na3 {[%emt 0:00:33]} ({Better is} 26... Nc3 $17 27. b5 d4) 27. Nd4 $15 {[%emt 0:00:55]} Rc4 {[%emt 0:00:24]} 28. c3 {[%emt 0:01:13]} Rdc8 {[%emt 0:00:20]} 29. Re3 {[%emt 0:01:55] Hoping for Ra1.} (29. Qb2 $5 {[%cal Rd4e2]}) 29... R4c7 {[%emt 0:00:46] aiming for ...Nc4.} (29... a5 {feels hotter.} 30. bxa5 Rxa4 31. axb6 Nc4) 30. Rfe1 {[%emt 0:02:03]} Kg7 $36 {[%emt 0:00:15][%mdl 2048] And now ...Nc4 would win. Black has the initiative.} (30... Nc4 $5 31. Re8+ Kg7 32. Rxc8 Rxc8 $11) 31. Qc1 $2 {[%emt 0:01:44][%mdl 8192] [#]} ({Don't go for} 31. Re8 $2 Rxe8 32. Rxe8 Nb1 $19) (31. Rd3 $11) 31... Qxd4 $1 $19 {[%emt 0:02:28][%mdl 512]} 32. Qxa3 {[%emt 0:00:59]} Rxc3 {[%emt 0:00:25]} 33. Qb2 {[%emt 0:00:30]} Qf6 {[%emt 0:01:52]} 34. R3e2 {[%emt 0:02:27]} (34. Rxc3 {was worth a try.} Rxc3 35. Rd1) 34... R8c4 {[%emt 0:00:56][%cal Bc8c4,Bc4d4,Bd4d1][%mdl 32]} 35. Rd2 {[%emt 0:01:31]} d4 {[%emt 0:00:20]} 36. Red1 {[%emt 0:00:41]} Qf4 {[%emt 0:00:40]} 37. Rxd4 $2 {[%emt 0:05:14]} (37. Re2) 37... Qe3+ {[%emt 0:00:49] Black is clearly winning.} 38. Qf2 {[%emt 0:01:10]} Rxd4 {[%emt 0:00:20][%cal Rd4d1] [#]} 39. Qxe3 {[%emt 0:00:28]} Rxd1+ {[%emt 0:00:10] Weighted Error Value: White=0.78/Black=0.14 (very precise)} ({Weaker is} 39... Rxe3 40. Rxd4 Kf6 41. a5 $11) 0-1

[Event "44th Chess Olympiad Women 2022"]
[Site "Chennai"]
[Date "2022.08.09"]
[Round "11.48"]
[White "Andre, Chineva Rufino"]
[Black "Phiri Bertha"]
[Result "1/2-1/2"]
[ECO "C01"]
[WhiteElo "1171"]
[BlackElo "1606"]
[Annotator "NA RC COMBH"]
[PlyCount "89"]
[EventDate "2022.07.29"]
[EventType "team-tourn"]
[EventCountry "IND"]
[SourceTitle "playchess.com"]
[Source "ChessBase"]
[SourceQuality "1"]
[WhiteTeam "Mozambique"]
[BlackTeam "Zambia"]
[WhiteTeamCountry "MOZ"]
[BlackTeamCountry "ZAM"]
[TimeControl "40/5400+30:1800+30"]

1. e4 {[%emt 0:00:06]} e6 {[%emt 0:00:18]} 2. d4 {[%emt 0:00:35]} d5 {[%emt 0:00:03]} 3. exd5 {[%emt 0:03:37]} exd5 {[%emt 0:00:06]} 4. Nf3 {[%emt 0:01:13]} Nf6 {[%emt 0:00:06]} 5. Bd3 {[%emt 0:01:27]} Be7 {[%emt 0:00:08]} 6. O-O {[%emt 0:00:20]} O-O {[%emt 0:00:04]} 7. Bg5 {[%emt 0:02:32]} Bg4 {[%emt 0:00:11]} 8. Nbd2 {[%emt 0:02:27]} c6 {[%emt 0:00:49]} 9. c3 {[%emt 0:00:27]} Qc7 {[%emt 0:00:22]} 10. Qc2 {[%emt 0:00:34]} h6 {[%emt 0:01:15]} 11. Bh4 {[%emt 0:00:48]} Nbd7 {[%emt 0:00:29]} 12. Bg3 {[%emt 0:00:25]} Bd6 {[%emt 0:00:03]} 13. Bxd6 {[%emt 0:01:42]} Qxd6 {[%emt 0:00:31]} 14. Rae1 {[%emt 0:01:11]} Rfe8 {[%emt 0:00:07]} 15. h3 {[%emt 0:02:53]} Bxf3 {[%emt 0:01:37]} 16. Nxf3 {[%emt 0:00:43]} Qf4 {[%emt 0:06:43]} 17. Qd2 {[%emt 0:02:59]} Nh5 {[%emt 0:04:40]} 18. Qxf4 {[%emt 0:03:54]} Nxf4 {[%emt 0:00:06]} 19. Bf5 {[%emt 0:01:45]} Nf8 {[%emt 0:01:03]} 20. g3 {[%emt 0:01:38]} N4e6 {[%emt 0:02:28]} 21. Bxe6 {[%emt 0:02:58]} Nxe6 {[%emt 0:00:47]} 22. Re3 {[%emt 0:01:11]} f6 {[%emt 0:00:28]} 23. Rfe1 {[%emt 0:00:25]} Kf7 {[%emt 0:00:02]} 24. Nh4 {[%emt 0:01:40]} Nc7 {[%emt 0:01:24]} 25. Nf5 {[%emt 0:02:18]} Kg6 {[%emt 0:07:52]} 26. g4 {[%emt 0:03:05]} Rxe3 {[%emt 0:00:30]} 27. Rxe3 {[%emt 0:00:15]} Re8 {[%emt 0:00:15]} 28. Rxe8 {[%emt 0:03:24]} Nxe8 {[%emt 0:00:07]} 29. f4 {[%emt 0:00:29]} Kf7 {[%emt 0:04:05]} 30. Kf2 {[%emt 0:00:18]} Ke6 {[%emt 0:00:03]} 31. Ke3 {[%emt 0:00:16]} b6 {[%emt 0:00:24]} 32. b4 {[%emt 0:00:25]} h5 {[%emt 0:03:38]} 33. Ng3 {[%emt 0:03:12]} hxg4 {[%emt 0:03:34]} 34. hxg4 {[%emt 0:00:10]} g6 {[%emt 0:02:08]} 35. Nf1 {[%emt 0:04:55]} Nd6 {[%emt 0:00:25]} 36. Nd2 {[%emt 0:02:41]} f5 {[%emt 0:06:06]} 37. g5 {[%emt 0:00:20]} Nc4+ {[%emt 0:00:09]} 38. Ke2 {[%emt 0:05:45]} Nxd2 {[%emt 0:01:36]} 39. Kxd2 {[%emt 0:00:02]} Kd6 {[%emt 0:00:07]} 40. Kd3 {[%emt 0:00:51]} c5 {[%emt 0:00:26]} 41. a4 {[%emt 0:33:29]} c4+ {[%emt 0:59:28]} 42. Kc2 {[%emt 0:03:06]} a6 {[%emt 0:05:42]} 43. Kb2 {[%emt 0:00:15]} Kc6 {[%emt 0:00:16]} 44. Ka3 {[%emt 0:00:18]} b5 {[%emt 0:07:26]} 45. a5 {[%emt 0:00:01]} 1/2-1/2

[Event "44th Chess Olympiad Women 2022"]
[Site "Chennai"]
[Date "2022.08.09"]
[Round "11.49"]
[White "Banda Natalie Katlo"]
[Black "Eman Sawan"]
[Result "0-1"]
[ECO "A45"]
[WhiteElo "1688"]
[BlackElo "1847"]
[Annotator "NA RC COMBH"]
[PlyCount "66"]
[EventDate "2022.07.29"]
[EventType "team-tourn"]
[EventCountry "IND"]
[SourceTitle "playchess.com"]
[Source "ChessBase"]
[SourceQuality "1"]
[WhiteTeam "Botswana"]
[BlackTeam "Palestine"]
[WhiteTeamCountry "BOT"]
[BlackTeamCountry "PLE"]
[TimeControl "40/5400+30:1800+30"]

1. d4 {[%emt 0:00:09]} Nf6 {[%emt 0:00:06]} 2. Bg5 {[%emt 0:00:15]} g6 {[%emt 0:00:11]} 3. Bxf6 {[%emt 0:00:10]} exf6 {[%emt 0:00:04]} 4. g3 {[%emt 0:00:54]} Bg7 {[%emt 0:00:14]} 5. Bg2 {[%emt 0:00:16]} f5 {[%emt 0:00:32]} 6. Nf3 {[%emt 0:04:15]} O-O {[%emt 0:03:04]} 7. h4 {[%emt 0:01:14]} h6 {[%emt 0:01:51]} 8. c3 {[%emt 0:05:32]} d6 {[%emt 0:02:52]} 9. Nbd2 {[%emt 0:00:38]} Nd7 {[%emt 0:00:24]} 10. O-O {[%emt 0:01:13]} Nf6 {[%emt 0:00:35]} 11. Re1 {[%emt 0:00:28]} Re8 {[%emt 0:01:57]} 12. Qc2 {[%emt 0:00:43]} c6 {[%emt 0:06:42]} 13. Bh3 {[%emt 0:04:34]} Ne4 {[%emt 0:04:37]} 14. Kg2 {[%emt 0:04:42]} g5 {[%emt 0:03:10]} 15. Nxe4 {[%emt 0:00:38]} fxe4 {[%emt 0:00:24]} 16. Nh2 {[%emt 0:01:55]} gxh4 {[%emt 0:05:14]} 17. Bxc8 {[%emt 0:01:21]} Rxc8 {[%emt 0:00:26]} 18. g4 {[%emt 0:00:15]} Qg5 {[%emt 0:03:00]} 19. Qc1 {[%emt 0:01:56]} e3 {[%emt 0:02:45]} 20. f3 {[%emt 0:01:52]} c5 {[%emt 0:05:21]} 21. dxc5 {[%emt 0:02:19]} Rxc5 {[%emt 0:04:26]} 22. Rg1 {[%emt 0:04:40]} Be5 {[%emt 0:02:23]} 23. Nf1 {[%emt 0:00:50]} Bf4 {[%emt 0:03:14]} 24. Kh3 {[%emt 0:01:22]} Qe7 {[%emt 0:05:19]} 25. Qe1 {[%emt 0:07:27]} Bg5 {[%emt 0:00:09]} 26. f4 {[%emt 0:03:29]} Bxf4 {[%emt 0:00:55]} 27. Qxh4 {[%emt 0:00:09]} Bg5 {[%emt 0:01:17]} 28. Qg3 {[%emt 0:01:12]} f5 {[%emt 0:01:52]} 29. gxf5 {[%emt 0:01:39]} Rxf5 {[%emt 0:00:32]} 30. Rd1 {[%emt 0:00:54]} Qf7 {[%emt 0:02:59]} 31. Qh4 {[%emt 0:15:39]} Kh7 {[%emt 0:07:06]} 32. Qg4 {[%emt 0:01:32]} Rf4 {[%emt 0:02:07]} 33. Qg3 {[%emt 0:01:23]} Qh5+ {[%emt 0:00:46]} 0-1

[Event "44th Chess Olympiad Women 2022"]
[Site "Chennai"]
[Date "2022.08.09"]
[Round "11.49"]
[White "Moshoboro Arona"]
[Black "Taqwa, Hamouri"]
[Result "0-1"]
[ECO "A46"]
[WhiteElo "1611"]
[BlackElo "1214"]
[Annotator "NA RC COMBH"]
[PlyCount "96"]
[EventDate "2022.07.29"]
[EventType "team-tourn"]
[EventCountry "IND"]
[SourceTitle "playchess.com"]
[Source "ChessBase"]
[SourceQuality "1"]
[WhiteTeam "Botswana"]
[BlackTeam "Palestine"]
[WhiteTeamCountry "BOT"]
[BlackTeamCountry "PLE"]
[TimeControl "40/5400+30:1800+30"]

1. d4 {[%emt 0:00:02]} e6 {[%emt 0:00:17]} 2. Nf3 {[%emt 0:00:06]} Nf6 {[%emt 0:00:07]} 3. e3 {[%emt 0:00:07]} Bb4+ {[%emt 0:01:02]} 4. Nbd2 {[%emt 0:01:43]} d5 {[%emt 0:00:19]} 5. Bd3 {[%emt 0:03:52]} Nbd7 {[%emt 0:00:36]} 6. O-O {[%emt 0:01:08]} c5 {[%emt 0:00:55]} 7. a3 {[%emt 0:09:51]} Ba5 {[%emt 0:03:38]} 8. c4 {[%emt 0:11:42]} Bc7 {[%emt 0:03:07]} 9. Qc2 {[%emt 0:06:54]} b6 {[%emt 0:02:43]} 10. Re1 {[%emt 0:05:51]} cxd4 {[%emt 0:06:36]} 11. Nxd4 {[%emt 0:02:06]} Bb7 {[%emt 0:01:32]} 12. cxd5 {[%emt 0:09:12]} Nxd5 {[%emt 0:03:17]} 13. N2f3 {[%emt 0:10:11]} Rc8 {[%emt 0:03:43]} 14. Qe2 {[%emt 0:02:40]} O-O {[%emt 0:03:24]} 15. Bd2 {[%emt 0:03:18]} Ne5 {[%emt 0:04:03]} 16. Ba6 {[%emt 0:05:55]} Bxa6 {[%emt 0:09:20]} 17. Qxa6 {[%emt 0:00:10]} Qd6 {[%emt 0:01:01]} 18. Qe2 {[%emt 0:02:58]} Rfd8 {[%emt 0:03:16]} 19. g3 {[%emt 0:04:30]} Nxf3+ {[%emt 0:07:48]} 20. Qxf3 {[%emt 0:00:25]} Qd7 {[%emt 0:05:01]} 21. Rac1 {[%emt 0:01:38]} Be5 {[%emt 0:01:27]} 22. Qe4 {[%emt 0:04:34]} Bc7 {[%emt 0:03:27]} 23. Red1 {[%emt 0:01:46]} Qa4 {[%emt 0:02:02]} 24. Qf3 {[%emt 0:01:11]} Be5 {[%emt 0:01:56]} 25. Qe4 {[%emt 0:03:27]} Bf6 {[%emt 0:01:26]} 26. Rb1 {[%emt 0:01:27]} e5 {[%emt 0:03:25]} 27. b3 {[%emt 0:01:14]} Qxa3 {[%emt 0:03:42]} 28. Nf3 {[%emt 0:02:29]} Qd6 {[%emt 0:01:36]} 29. Be1 {[%emt 0:01:46]} Qe6 {[%emt 0:01:01]} 30. Bd2 {[%emt 0:00:50]} g6 {[%emt 0:00:46]} 31. Be1 {[%emt 0:01:06]} Kg7 {[%emt 0:02:06]} 32. b4 {[%emt 0:00:09]} b5 {[%emt 0:01:06]} 33. Ra1 {[%emt 0:00:26]} Rc4 {[%emt 0:01:02]} 34. Qb1 {[%emt 0:00:07]} e4 {[%emt 0:02:55]} 35. Nd4 {[%emt 0:00:06]} Bxd4 {[%emt 0:00:18]} 36. Rxd4 {[%emt 0:01:17]} Rxd4 {[%emt 0:00:32]} 37. exd4 {[%emt 0:00:05]} a6 {[%emt 0:00:47]} 38. Qb2 {[%emt 0:01:26]} Rd6 {[%emt 0:01:33]} 39. Rc1 {[%emt 0:01:12]} f5 {[%emt 0:02:33]} 40. Rc5 {[%emt 0:00:40]} f4 {[%emt 0:01:25]} 41. gxf4 {[%emt 0:10:59]} Qg4+ {[%emt 0:02:24]} 42. Kh1 {[%emt 0:01:40]} Qf3+ {[%emt 0:00:31]} 43. Kg1 {[%emt 0:00:45]} Nxf4 {[%emt 0:00:19]} 44. Rg5 {[%emt 0:04:14]} Nh3+ {[%emt 0:03:05]} 45. Kf1 {[%emt 0:00:07]} Nxg5 {[%emt 0:00:24]} 46. d5+ {[%emt 0:00:27]} Kf7 {[%emt 0:02:10]} 47. Qc1 {[%emt 0:05:32]} Qh3+ {[%emt 0:00:56]} 48. Ke2 {[%emt 0:00:16]} Qd3# {[%emt 0:00:13]} 0-1

[Event "44th Chess Olympiad Women 2022"]
[Site "Chennai"]
[Date "2022.08.09"]
[Round "11.49"]
[White "Heba, Assi"]
[Black "Besa, Masaiti"]
[Result "0-1"]
[ECO "A48"]
[WhiteElo "1449"]
[BlackElo "1745"]
[Annotator "NA RC COMBH"]
[PlyCount "72"]
[EventDate "2022.07.29"]
[EventType "team-tourn"]
[EventCountry "IND"]
[SourceTitle "playchess.com"]
[Source "ChessBase"]
[SourceQuality "1"]
[WhiteTeam "Palestine"]
[BlackTeam "Botswana"]
[WhiteTeamCountry "PLE"]
[BlackTeamCountry "BOT"]
[TimeControl "40/5400+30:1800+30"]

1. d4 {[%emt 0:02:09]} Nf6 {[%emt 0:00:08]} 2. Nf3 {[%emt 0:00:08]} g6 {[%emt 0:00:12]} 3. e3 {[%emt 0:00:11]} d5 {[%emt 0:00:06]} 4. Be2 {[%emt 0:00:20]} Bg7 {[%emt 0:00:26]} 5. b3 {[%emt 0:00:11]} c5 {[%emt 0:01:24]} 6. Bb2 {[%emt 0:00:34]} Nc6 {[%emt 0:00:07]} 7. O-O {[%emt 0:00:28]} cxd4 {[%emt 0:00:08]} 8. exd4 {[%emt 0:01:01]} O-O {[%emt 0:03:33]} 9. Nbd2 {[%emt 0:00:47]} Bf5 {[%emt 0:00:20]} 10. c4 {[%emt 0:01:47]} Rc8 {[%emt 0:01:20]} 11. Rc1 {[%emt 0:00:52]} Nb4 {[%emt 0:14:45]} 12. a3 {[%emt 0:04:28]} Nd3 {[%emt 0:00:38]} 13. Bxd3 {[%emt 0:01:41]} Bxd3 {[%emt 0:00:04]} 14. Re1 {[%emt 0:01:19]} Re8 {[%emt 0:01:33]} 15. Ne5 {[%emt 0:01:15]} Bf5 {[%emt 0:00:46]} 16. b4 {[%emt 0:02:33]} dxc4 {[%emt 0:01:24]} 17. Ndxc4 {[%emt 0:02:10]} Nd5 {[%emt 0:00:59]} 18. Qb3 {[%emt 0:04:27]} Be6 {[%emt 0:20:38]} 19. Qf3 {[%emt 0:05:34]} Bh6 {[%emt 0:05:02]} 20. Ne3 {[%emt 0:07:22]} Qd6 {[%emt 0:04:25]} 21. N5c4 {[%emt 0:05:00]} Qf4 {[%emt 0:02:22]} 22. Ng4 {[%emt 0:11:06]} Qxg4 {[%emt 0:01:24]} 23. Ne5 {[%emt 0:06:12]} Rxc1 {[%emt 0:03:16]} 24. Bxc1 {[%emt 0:01:55]} Qxf3 {[%emt 0:00:09]} 25. Nxf3 {[%emt 0:00:34]} Bxc1 {[%emt 0:00:04]} 26. Rxc1 {[%emt 0:00:06]} Rc8 {[%emt 0:00:08]} 27. Rc5 {[%emt 0:01:43]} b6 {[%emt 0:00:24]} 28. Rxc8+ {[%emt 0:00:21]} Bxc8 {[%emt 0:00:03]} 29. Ne5 {[%emt 0:00:12]} Bb7 {[%emt 0:02:10]} 30. f3 {[%emt 0:01:07]} f6 {[%emt 0:00:05]} 31. Nd3 {[%emt 0:01:47]} Nc3 {[%emt 0:00:15]} 32. Nb2 {[%emt 0:01:08]} Ne2+ {[%emt 0:00:16]} 33. Kf2 {[%emt 0:00:25]} Nxd4 {[%emt 0:00:10]} 34. f4 {[%emt 0:00:34]} Nc2 {[%emt 0:03:47]} 35. a4 {[%emt 0:03:46]} Nxb4 {[%emt 0:00:11]} 36. Nc4 {[%emt 0:02:17]} Bd5 {[%emt 0:00:58]} 0-1

[Event "44th Chess Olympiad Women 2022"]
[Site "Chennai"]
[Date "2022.08.09"]
[Round "11.49"]
[White "Seder, Randa"]
[Black "Otisitswe Ruth"]
[Result "0-1"]
[ECO "C41"]
[WhiteElo "1442"]
[BlackElo "1552"]
[Annotator "NA RC COMBH"]
[PlyCount "90"]
[EventDate "2022.07.29"]
[EventType "team-tourn"]
[EventCountry "IND"]
[SourceTitle "playchess.com"]
[Source "ChessBase"]
[SourceQuality "1"]
[WhiteTeam "Palestine"]
[BlackTeam "Botswana"]
[WhiteTeamCountry "PLE"]
[BlackTeamCountry "BOT"]
[TimeControl "40/5400+30:1800+30"]

1. e4 {[%emt 0:00:07]} e5 {[%emt 0:00:08]} 2. Nf3 {[%emt 0:00:16]} d6 {[%emt 0:00:07]} 3. Nc3 {[%emt 0:01:06]} Nf6 {[%emt 0:01:06]} 4. d4 {[%emt 0:01:43]} Nbd7 {[%emt 0:00:09]} 5. Bg5 {[%emt 0:01:36]} Be7 {[%emt 0:00:21]} 6. Qd2 {[%emt 0:04:00]} c6 {[%emt 0:03:20]} 7. dxe5 {[%emt 0:01:46]} dxe5 {[%emt 0:00:06]} 8. Be2 {[%emt 0:18:27]} b5 {[%emt 0:00:41]} 9. Bxf6 {[%emt 0:01:34]} Bxf6 {[%emt 0:05:09]} 10. Qd6 {[%emt 0:02:01]} Qb6 {[%emt 0:02:05]} 11. O-O-O {[%emt 0:01:43]} Be7 {[%emt 0:04:03]} 12. Qd2 {[%emt 0:02:39]} Qxf2 {[%emt 0:05:00]} 13. Rhg1 {[%emt 0:02:43]} Qb6 {[%emt 0:00:32]} 14. Qd3 {[%emt 0:06:04]} Nc5 {[%emt 0:02:56]} 15. Qe3 {[%emt 0:01:03]} Nb3+ {[%emt 0:00:33]} 16. axb3 {[%emt 0:01:43]} Qxe3+ {[%emt 0:00:09]} 17. Kb1 {[%emt 0:00:49]} b4 {[%emt 0:00:43]} 18. Rd3 {[%emt 0:00:21]} Qxg1+ {[%emt 0:01:49]} 19. Nxg1 {[%emt 0:00:20]} bxc3 {[%emt 0:00:05]} 20. Rxc3 {[%emt 0:00:36]} Bb7 {[%emt 0:00:43]} 21. Nf3 {[%emt 0:00:33]} f6 {[%emt 0:02:25]} 22. Nh4 {[%emt 0:00:31]} g6 {[%emt 0:00:12]} 23. Nf3 {[%emt 0:01:18]} Bd6 {[%emt 0:00:59]} 24. Ba6 {[%emt 0:01:59]} Bxa6 {[%emt 0:00:43]} 25. Rxc6 {[%emt 0:00:15]} Be2 {[%emt 0:00:03]} 26. Rxd6 {[%emt 0:00:15]} Bxf3 {[%emt 0:00:04]} 27. gxf3 {[%emt 0:00:14]} Ke7 {[%emt 0:00:04]} 28. Rc6 {[%emt 0:00:25]} Rhc8 {[%emt 0:00:06]} 29. Ra6 {[%emt 0:00:38]} Rcb8 {[%emt 0:01:56]} 30. Rc6 {[%emt 0:00:16]} Rb7 {[%emt 0:00:15]} 31. Rc4 {[%emt 0:00:14]} Kd6 {[%emt 0:01:03]} 32. Rc3 {[%emt 0:00:18]} f5 {[%emt 0:00:30]} 33. Rd3+ {[%emt 0:00:10]} Ke6 {[%emt 0:00:05]} 34. Rc3 {[%emt 0:00:14]} Rd8 {[%emt 0:00:33]} 35. exf5+ {[%emt 0:00:51]} Kxf5 {[%emt 0:00:42]} 36. h3 {[%emt 0:01:06]} Rd2 {[%emt 0:00:30]} 37. Rc4 {[%emt 0:01:06]} Rf2 {[%emt 0:00:29]} 38. Rc3 {[%emt 0:00:30]} Rh2 {[%emt 0:00:26]} 39. h4 {[%emt 0:01:06]} Rxh4 {[%emt 0:00:31]} 40. Rd3 {[%emt 0:00:25]} Rb6 {[%emt 0:00:23]} 41. Kc1 {[%emt 0:30:14]} Kf4 {[%emt 0:30:10]} 42. Kd2 {[%emt 0:00:14]} Rh2+ {[%emt 0:00:49]} 43. Kc1 {[%emt 0:00:57]} Ra6 {[%emt 0:00:00]} 44. Rd4+ {[%emt 0:01:09]} exd4 {[%emt 0:00:06]} 45. Kb1 {[%emt 0:00:39]} Rh1# {[%emt 0:00:08]} 0-1